[Event "Indian Rapid Championship 2023-24"]
[Site "Nashik"]
[Date "2024.03.06"]
[Round "11.4"]
[White "Das, Arghyadip"]
[Black "Mitrabha, Guha"]
[Result "1-0"]
[ECO "C02"]
[WhiteElo "2405"]
[BlackElo "2526"]
[Annotator "ChessBase"]
[PlyCount "105"]
[EventDate "2024.03.02"]
[EventType "swiss"]
[EventCountry "IND"]
[SourceTitle "playchess.com"]
[Source "ChessBase"]
[SourceQuality "1"]
[TimeControl "900+10"]

1. e4 {[%emt 0:00:03]} e6 {[%emt 0:00:01]} 2. d4 {[%emt 0:00:03]} d5 {[%emt 0:00:00]} 3. e5 {[%emt 0:00:05]} c5 {[%emt 0:00:02]} 4. c3 {[%emt 0:00:01]} Nc6 {[%emt 0:00:01]} 5. Nf3 {[%emt 0:00:02]} Qb6 {[%emt 0:00:01]} 6. a3 {[%emt 0:00:09]} c4 {[%emt 0:00:01]} 7. Nbd2 {[%emt 0:00:17]} Na5 {[%emt 0:00:03]} 8. g3 {[%emt 0:00:15]} Bd7 {[%emt 0:00:02]} 9. Bh3 {[%emt 0:00:02]} Ne7 {[%emt 0:00:03]} 10. O-O {[%emt 0:00:21]} Qc7 {[%emt 0:00:07]} 11. Ne1 {[%emt 0:00:35]} Nc8 {[%emt 0:00:04]} 12. Ng2 {[%emt 0:00:04]} Nb6 {[%emt 0:00:06]} 13. Ne3 {[%emt 0:00:02]} O-O-O {[%emt 0:00:11]} 14. f4 {[%emt 0:00:36]} g6 {[%emt 0:00:01]} 15. Rb1 {[%emt 0:00:28]} Kb8 {[%emt 0:00:05]} 16. Nf3 {[%emt 0:00:18]} Nb3 {[%emt 0:00:18]} 17. Bd2 {[%emt 0:00:04]} Ba4 {[%emt 0:00:06]} 18. Qe2 {[%emt 0:00:10]} Nxd2 {[%emt 0:00:45]} 19. Qxd2 {[%emt 0:00:23]} Nc8 {[%emt 0:00:02]} 20. Bg2 {[%emt 0:01:56]} Ne7 {[%emt 0:00:17]} 21. g4 {[%emt 0:00:59]} h5 {[%emt 0:00:46]} 22. h3 {[%emt 0:00:08]} hxg4 {[%emt 0:00:02]} 23. hxg4 {[%emt 0:00:03]} Bh6 {[%emt 0:00:20]} 24. Ng5 {[%emt 0:00:29]} Rdf8 {[%emt 0:00:02]} 25. Rf3 {[%emt 0:00:41]} Bd7 {[%emt 0:00:05]} 26. Nh3 {[%emt 0:00:13]} Bg7 {[%emt 0:00:14]} 27. g5 {[%emt 0:01:45]} Rh4 {[%emt 0:00:23]} 28. Nf2 {[%emt 0:01:43]} Rfh8 {[%emt 0:00:50]} 29. Kf1 {[%emt 0:00:00]} Ba4 {[%emt 0:00:26]} 30. Ke2 {[%emt 0:00:03]} a5 {[%emt 0:00:02]} 31. Rh1 {[%emt 0:00:25]} b5 {[%emt 0:00:12]} 32. Rfh3 {[%emt 0:00:06]} Rxh3 {[%emt 0:00:03]} 33. Rxh3 {[%emt 0:00:01]} Rxh3 {[%emt 0:00:02]} 34. Bxh3 {[%emt 0:00:14]} Nc6 {[%emt 0:00:01]} 35. Nfg4 {[%emt 0:01:18]} b4 {[%emt 0:00:11]} 36. axb4 {[%emt 0:00:02]} axb4 {[%emt 0:00:01]} 37. Nf6 {[%emt 0:00:02]} Na7 {[%emt 0:00:24]} 38. Qc1 {[%emt 0:01:41]} Nb5 {[%emt 0:00:06]} 39. Qa1 {[%emt 0:00:30]} Qa7 {[%emt 0:00:02]} 40. Kd2 {[%emt 0:00:34]} Qa5 {[%emt 0:02:24]} 41. Nd7+ {[%emt 0:01:46]} Kc7 {[%emt 0:00:01]} 42. Nc5 {[%emt 0:00:20]} bxc3+ {[%emt 0:00:01]} 43. bxc3 {[%emt 0:00:02]} Nxd4 {[%emt 0:00:02]} 44. Qxa4 {[%emt 0:00:08]} Nb3+ {[%emt 0:00:22]} 45. Ke2 {[%emt 0:00:18]} Qxc5 {[%emt 0:00:02]} 46. Qe8 {[%emt 0:00:35]} Qf8 {[%emt 0:00:02]} 47. Nxd5+ {[%emt 0:01:43]} exd5 {[%emt 0:00:02]} 48. Qd7+ {[%emt 0:00:01]} Kb6 {[%emt 0:00:01]} 49. Qxd5 {[%emt 0:00:01]} Qa3 {[%emt 0:07:57]} 50. Qd8+ {[%emt 0:00:26]} Kc6 {[%emt 0:02:51]} 51. Bg2+ {[%emt 0:00:26]} Kb5 {[%emt 0:00:07]} 52. Qd7+ {[%emt 0:00:09]} Kb6 {[%emt 0:00:17]} 53. Qb7+ {[%emt 0:00:03]} 1-0

[Event "Indian Rapid Championship 2023-24"]
[Site "Nashik"]
[Date "2024.03.06"]
[Round "11.5"]
[White "Aradhya, Garg"]
[Black "Sriram, Jha"]
[Result "1-0"]
[ECO "D10"]
[WhiteElo "2385"]
[BlackElo "2312"]
[Annotator "TA"]
[PlyCount "131"]
[EventDate "2024.03.02"]
[EventType "swiss"]
[EventCountry "IND"]
[SourceTitle "playchess.com"]
[Source "ChessBase"]
[SourceQuality "1"]
[TimeControl "900+10"]

{[%evp 9,131,3,7,10,44,36,33,30,34,32,32,29,29,23,34,18,20,20,11,3,10,8,14,0,12,12,0,0,0,0,0,-24,0,0,2,6,6,4,12,0,0,0,56,52,52,53,137,121,131,138,193,186,296,180,185,180,229,195,254,267,264,247,285,292,295,273,320,308,287,299,327,322,354,345,316,304,325,313,384,377,385,377,372,365,454,450,555,599,587,598,612,591,807,800,786,734,816,775,859,876,885,877,876,872,850,836,1485,1481,1001,936,29968,29968,29963,29967,29963,29964,29966,29967,29965,5110,29963,29965,29975,29976]} 1. d4 {[%emt 0:00:02]} d5 {[%emt 0:00:02]} 2. c4 {[%emt 0:00:01]} c6 {[%emt 0:00:01]} 3. cxd5 {[%emt 0:00:02]} cxd5 {[%emt 0:00:03]} 4. Bg5 {[%emt 0:00:01]} Nc6 {[%emt 0:01:31]} 5. Nc3 {[%emt 0:00:02]} h6 {[%emt 0:00:41]} 6. Bh4 {[%emt 0:00:02]} Qa5 {[%emt 0:03:12]} 7. e3 {[%emt 0:03:09]} e6 {[%emt 0:00:13]} 8. Bd3 {[%emt 0:00:29] White is slightly better.} Be7 {[%emt 0:00:48]} 9. Bxe7 {[%emt 0:00:12]} Ngxe7 {[%emt 0:00:01]} 10. Nf3 {[%emt 0:00:01]} O-O {[%emt 0:00:44]} 11. O-O {[%emt 0:00:04]} Bd7 {[%emt 0:00:10]} 12. a3 {[%emt 0:00:01]} Rfc8 {[%emt 0:00:28]} 13. b4 {[%emt 0:00:43]} Qd8 {[%emt 0:00:02][%cal Oc6d4]} 14. Qd2 {[%emt 0:00:46]} Be8 {[%emt 0:00:29]} 15. Rfc1 {[%emt 0:00:35]} f6 {[%emt 0:00:28]} 16. Na4 {[%emt 0:00:42]} Bf7 {[%emt 0:00:33]} 17. Nc5 {[%emt 0:01:01]} b6 {[%emt 0:00:35]} 18. Na6 {[%emt 0:00:19]} Qd6 {[%emt 0:01:31]} 19. Rc3 {[%emt 0:02:07]} e5 {[%emt 0:00:21] Threatens to win with ...e4.} 20. Be2 {[%emt 0:00:05]} e4 {[%emt 0:01:47]} 21. Ne1 {[%emt 0:00:03][%cal Bf3e1,Be1c2,Bc2b4][%mdl 32]} Nd8 {[%emt 0:01:11]} 22. Rac1 {[%emt 0:00:19]} Rxc3 {[%emt 0:00:03]} 23. Rxc3 {[%emt 0:00:01]} Rc8 {[%emt 0:00:12]} 24. b5 {[%emt 0:01:18]} Qd7 {[%emt 0:00:34]} 25. Nc2 {[%emt 0:00:39]} Nf5 {[%emt 0:00:56]} (25... Nb7 $11) 26. Ncb4 $14 {[%emt 0:00:35]} Nd6 {[%emt 0:00:19]} 27. a4 {[%emt 0:00:46]} Be6 {[%emt 0:00:15] Black is now going downhill.} ({Black should try} 27... Nc4 $14 28. Bxc4 Rxc4) 28. Qc2 {[%emt 0:00:25] White is more active.} Rxc3 {[%emt 0:00:22]} 29. Qxc3 {[%emt 0:00:01]} N6b7 {[%emt 0:01:21]} (29... Nf5 $16 {might work better.} 30. Qc7 Qxc7 31. Nxc7 Ne7) 30. Qc7 $18 {[%emt 0:00:20]} Qf7 {[%emt 0:00:23]} (30... Qxc7 $142 31. Nxc7 Kf7 32. Nbxd5 (32. Ncxd5 Nd6 $18) 32... Bf5) 31. Qxf7+ {[%emt 0:00:38]} Kxf7 {[%emt 0:00:25]} 32. Nc7 {[%emt 0:00:02]} Ke7 {[%emt 0:00:15]} (32... Nd6 {keeps fighting.} 33. Kf1 (33. Nbxd5 Bxd5 34. Nxd5 N8b7 $18) 33... f5) 33. Ncxd5+ {[%emt 0:00:12]} Kd6 {[%emt 0:00:01]} (33... Kd7 $142 34. Bd1 Bg8) 34. Nc3 {[%emt 0:00:15]} f5 {[%emt 0:00:02] [#]} 35. g4 $1 {[%emt 0:00:08][%mdl 512]} g6 {[%emt 0:00:09]} (35... fxg4 36. Nxe4+) 36. h4 {[%emt 0:00:02]} Na5 {[%emt 0:00:29]} 37. h5 {[%emt 0:00:45]} gxh5 {[%emt 0:00:02]} 38. gxf5 {[%emt 0:00:03]} ({Not} 38. gxh5 Bf7 $16) 38... Bxf5 {[%emt 0:00:01]} 39. Bxh5 {[%emt 0:00:02]} Nc4 {[%emt 0:00:18]} 40. Kg2 {[%emt 0:00:19]} Ne6 {[%emt 0:00:12]} 41. Bf7 {[%emt 0:00:20]} Nb2 {[%emt 0:00:13]} 42. Kg3 {[%emt 0:01:00]} Ng5 {[%emt 0:00:17]} 43. Bb3 {[%emt 0:00:18]} Nd3 {[%emt 0:00:07]} 44. Nc6 {[%emt 0:00:57]} Nf3 {[%emt 0:00:15]} 45. Bd1 {[%emt 0:00:24]} (45. Nxa7 h5 46. Bd1 h4+ 47. Kg2 h3+ 48. Kg3 Nd2 $11) 45... Nd2 {[%emt 0:00:14]} 46. Nxa7 {[%emt 0:00:12]} Nc4 {[%emt 0:00:14]} 47. Nc6 {[%emt 0:00:27]} Nd2 {[%emt 0:00:10]} 48. a5 {[%emt 0:00:17]} bxa5 {[%emt 0:00:02]} 49. Nxa5 {[%emt 0:00:02]} Kc7 {[%emt 0:00:15]} 50. Nd5+ {[%emt 0:00:17]} Kd6 {[%emt 0:00:12] [#]} 51. b6 $1 {[%emt 0:00:05][%cal Bb5b6,Bb6b7][%mdl 32] Hoping for b7.} Bc8 {[%emt 0:00:02]} 52. Nc3 {[%emt 0:00:17]} Ba6 {[%emt 0:00:06]} 53. Be2 {[%emt 0:00:27]} Kd7 {[%emt 0:00:13]} 54. Bg4+ {[%emt 0:00:32]} Kd6 {[%emt 0:00:02]} 55. b7 {[%emt 0:00:09]} Kc7 {[%emt 0:00:06]} 56. Nd5+ {[%emt 0:00:07]} Kb8 {[%emt 0:00:02]} 57. Bc8 {[%emt 0:00:19]} Bb5 {[%emt 0:00:13] Wards off Nc6+} 58. Ne7 {[%emt 0:00:21]} Nb4 {[%emt 0:00:01] Against Nec6+} 59. d5 {[%emt 0:00:01][%cal Bd4d5,Bd5c6][%mdl 32]} Nc4 {[%emt 0:00:17]} 60. Nac6+ {[%emt 0:00:20]} Bxc6 {[%emt 0:00:20]} 61. Nxc6+ {[%emt 0:00:11]} Nxc6 {[%emt 0:00:01]} 62. dxc6 {[%emt 0:00:01] KB-KN} Ne5 {[%emt 0:00:15]} 63. Bd7 {[%emt 0:00:03]} Kc7 {[%emt 0:00:21]} 64. Be8 {[%emt 0:00:06]} (64. Kf4 $142 Nd3+ 65. Kxe4 Nc5+ 66. Kd4 Na6 67. e4 Kd8 68. e5 h5 69. e6 (69. Kd5 Ke7 70. e6 Kf6 71. Kd6 h4 72. e7 Nb8 73. e8=Q h3 74. Qxb8 Kf7)) 64... h5 {[%emt 0:00:13]} 65. Bxh5 {[%emt 0:00:12]} Nxc6 {[%emt 0:00:05]} 66. Bg6 {[%emt 0:00:01] Weighted Error Value: White=0.08 (flawless) /Black=0.24 (precise) .  Mistake:       	---       	Black=6      Inaccurate:     	White=1     	Black=2      OK:         	White=22    	Black=20} 1-0

[Event "Indian Rapid Championship 2023-24"]
[Site "Nashik"]
[Date "2024.03.06"]
[Round "11.6"]
[White "Sammed Jaykumar, Shete"]
[Black "Shahil Dey"]
[Result "1-0"]
[ECO "C54"]
[WhiteElo "2404"]
[BlackElo "2332"]
[Annotator "ChessBase"]
[PlyCount "73"]
[EventDate "2024.03.02"]
[EventType "swiss"]
[EventCountry "IND"]
[SourceTitle "playchess.com"]
[Source "ChessBase"]
[SourceQuality "1"]
[TimeControl "900+10"]

1. e4 {[%emt 0:00:02]} e5 {[%emt 0:00:01]} 2. Bc4 {[%emt 0:00:32]} Nc6 {[%emt 0:00:29]} 3. Nf3 {[%emt 0:00:20]} Bc5 {[%emt 0:00:02]} 4. c3 {[%emt 0:00:05]} Nf6 {[%emt 0:00:06]} 5. d3 {[%emt 0:00:01]} d6 {[%emt 0:00:12]} 6. Bb3 {[%emt 0:00:05]} a5 {[%emt 0:00:03]} 7. O-O {[%emt 0:00:11]} Ba7 {[%emt 0:00:28]} 8. Nbd2 {[%emt 0:00:23]} O-O {[%emt 0:00:09]} 9. h3 {[%emt 0:00:03]} Be6 {[%emt 0:00:57]} 10. Bc2 {[%emt 0:00:01]} d5 {[%emt 0:00:17]} 11. exd5 {[%emt 0:00:02]} Nxd5 {[%emt 0:00:45]} 12. Re1 {[%emt 0:00:07]} Re8 {[%emt 0:04:02]} 13. Ne4 {[%emt 0:00:16]} h6 {[%emt 0:00:23]} 14. Ng3 {[%emt 0:01:43]} Qd6 {[%emt 0:00:29]} 15. Nh4 {[%emt 0:00:41]} Qd7 {[%emt 0:02:03]} 16. Qf3 {[%emt 0:00:34]} Rad8 {[%emt 0:03:35]} 17. Nhf5 {[%emt 0:04:46]} Bxf5 {[%emt 0:01:04]} 18. Nxf5 {[%emt 0:00:02]} Re6 {[%emt 0:00:05]} 19. Qh5 {[%emt 0:03:34]} Rf6 {[%emt 0:00:30]} 20. d4 {[%emt 0:00:01]} exd4 {[%emt 0:00:28]} 21. Bxh6 {[%emt 0:00:07]} g6 {[%emt 0:00:14]} 22. Qh4 {[%emt 0:01:47]} Rxf5 {[%emt 0:00:40]} 23. Bxf5 {[%emt 0:00:02]} Qxf5 {[%emt 0:00:02]} 24. c4 {[%emt 0:00:01]} Ndb4 {[%emt 0:01:21]} 25. Bg5 {[%emt 0:00:06]} Rf8 {[%emt 0:00:00]} 26. g4 {[%emt 0:00:21]} Ne5 {[%emt 0:00:47]} 27. Rxe5 {[%emt 0:00:11]} Qxe5 {[%emt 0:00:01]} 28. Bf6 {[%emt 0:00:01]} Qxf6 {[%emt 0:00:01]} 29. Qxf6 {[%emt 0:00:02]} Re8 {[%emt 0:00:11]} 30. Rd1 {[%emt 0:00:12]} c5 {[%emt 0:00:20]} 31. h4 {[%emt 0:00:25]} Nc6 {[%emt 0:00:05]} 32. h5 {[%emt 0:00:10]} Re6 {[%emt 0:00:01]} 33. Qg5 {[%emt 0:00:25]} Ne5 {[%emt 0:00:28]} 34. Kg2 {[%emt 0:00:05]} Nxc4 {[%emt 0:00:19]} 35. Qd8+ {[%emt 0:00:21]} Kh7 {[%emt 0:00:09]} 36. Qf8 {[%emt 0:00:10]} Nd6 {[%emt 0:00:11]} 37. h6 {[%emt 0:00:04]} 1-0

[Event "Indian Rapid Championship 2023-24"]
[Site "Nashik"]
[Date "2024.03.06"]
[Round "11.7"]
[White "Karthik Venkataraman"]
[Black "Pimpalkhare Vedant"]
[Result "1-0"]
[ECO "D41"]
[WhiteElo "2609"]
[BlackElo "2254"]
[Annotator "TA"]
[PlyCount "171"]
[EventDate "2024.03.02"]
[EventType "swiss"]
[EventCountry "IND"]
[SourceTitle "playchess.com"]
[Source "ChessBase"]
[SourceQuality "1"]
[TimeControl "900+10"]

{[%evp 56,171,170,180,1780,1175,2081,315,269,253,2093,2151,3177,2145,2822,1697,2519,293,768,1017,1018,1017,1002,991,964,957,922,922,29963,0,293,293,296,268,289,281,224,0,223,162,157,154,273,106,112,114,134,137,131,133,145,142,142,151,183,140,114,131,144,142,127,132,138,136,183,159,376,370,376,376,376,368,1733,1540,29943,29945,29946,29947,29946,29948,29948,29949,29947,29945,29951,29953,29954,29955,29956,29956,29952,4137,29975,29976,29976,29975,29970,29971,29980,29981,29983,29980,29980,29981,29981,29974,29976,29977,29973,29972,29971,29967,29982,29983,29983,29983,29984,432]} 1. d4 {[%emt 0:00:02]} e6 {[%emt 0:00:07]} 2. c4 {[%emt 0:00:33]} Nf6 {[%emt 0:00:07]} 3. Nf3 {[%emt 0:00:08]} d5 {[%emt 0:00:00]} 4. Nc3 {[%emt 0:00:06]} c5 {[%emt 0:00:01]} 5. cxd5 {[%emt 0:00:20]} Nxd5 {[%emt 0:00:01]} 6. e4 {[%emt 0:00:06]} Nxc3 {[%emt 0:00:02]} 7. bxc3 {[%emt 0:00:01]} cxd4 {[%emt 0:00:02]} 8. cxd4 {[%emt 0:00:01]} Bb4+ {[%emt 0:00:01]} 9. Bd2 {[%emt 0:00:01]} Bxd2+ {[%emt 0:00:02]} 10. Qxd2 {[%emt 0:00:02]} O-O {[%emt 0:00:02]} 11. Bc4 {[%emt 0:00:01]} Nd7 {[%emt 0:00:04]} 12. O-O {[%emt 0:00:03]} b6 {[%emt 0:00:01]} 13. Rfe1 {[%emt 0:00:01]} Bb7 {[%emt 0:00:01]} 14. Rad1 {[%emt 0:00:02]} Rc8 {[%emt 0:00:01] D41: Damengambit (Verbesserte Tarrasch-Verteidigung).} 15. Bb3 {[%emt 0:00:01]} Re8 {[%emt 0:00:01]} 16. h3 {[%emt 0:00:06]} b5 {[%emt 0:02:35]} 17. d5 {[%emt 0:00:28]} exd5 {[%emt 0:00:09]} 18. exd5 {[%emt 0:00:24]} Rxe1+ {[%emt 0:03:00]} 19. Rxe1 {[%emt 0:00:01]} Qf6 $146 {[%emt 0:03:20]} ({Predecessor:} 19... Nf6 20. d6 Bxf3 21. gxf3 Rc6 22. Qe3 Rxd6 23. Qxa7 Rd7 24. Qc5 Rb7 25. Rd1 Qe8 {½-½ Deac,B (2643)-Tarlev,K (2568) ROM-chT Mamaia 2021 (11.2)}) 20. Ng5 {[%emt 0:02:17]} h6 {[%emt 0:02:01]} 21. Ne4 {[%emt 0:00:29]} Qg6 {[%emt 0:00:21]} 22. Qf4 {[%emt 0:00:41]} Re8 {[%emt 0:00:27]} 23. Re3 {[%emt 0:00:02]} Re5 {[%emt 0:01:39]} 24. Nc3 {[%emt 0:01:37]} Rxe3 {[%emt 0:00:32]} 25. Qxe3 {[%emt 0:00:16]} b4 {[%emt 0:00:27]} 26. Qe8+ {[%emt 0:02:16]} Nf8 {[%emt 0:00:04]} 27. Ne4 {[%emt 0:00:01]} Qf5 {[%emt 0:01:22]} 28. Ng3 {[%emt 0:02:31]} Qd7 {[%emt 0:00:18]} 29. Qe5 {[%emt 0:00:11]} f6 $2 {[%emt 0:01:59]} (29... Qc8 30. Qe7 Qc1+ 31. Kh2 Bc8 32. Qxb4 a6) 30. d6+ $18 {[%emt 0:00:11]} Kh7 {[%emt 0:00:37]} 31. Bc2+ $2 {[%emt 0:01:01]} (31. Qe7 {jetzt Nh5 und aus.} Qc6 32. f3 (32. Qxf8 $2 Qxg2#)) 31... Kg8 $18 {[%emt 0:00:02]} 32. Qe7 $1 {[%emt 0:02:20]} Qc6 $2 {[%emt 0:00:14]} (32... Bd5 33. Nh5 Qxe7 34. dxe7 Kf7) 33. Bb3+ $18 {[%emt 0:00:02]} Kh7 {[%emt 0:00:01]} 34. f3 {[%emt 0:00:00]} (34. Qxf8 $2 Qxg2#) 34... Ng6 {[%emt 0:00:33]} 35. Qe6 {[%emt 0:01:29]} Ne5 {[%emt 0:00:09]} 36. Nh5 $2 {[%emt 0:00:02]} (36. Qg8+ Kg6 37. h4) 36... Qc1+ $2 {[%emt 0:00:17]} (36... Kg6) 37. Kh2 $18 {[%emt 0:00:16]} Nxf3+ {[%emt 0:00:21]} 38. gxf3 {[%emt 0:00:01]} Qd2+ {[%emt 0:00:04]} 39. Kg3 {[%emt 0:00:01]} Qg5+ {[%emt 0:00:04]} 40. Qg4 {[%emt 0:00:40]} Qe5+ {[%emt 0:00:01]} 41. Kf2 {[%emt 0:00:30]} Qb2+ {[%emt 0:00:19]} 42. Kg3 $2 {[%emt 0:02:24]} (42. Bc2+ $1 {setzt Matt} Qxc2+ 43. Kg3 Qg6 44. d7 f5 45. Qxg6+ (45. d8=Q $2 fxg4 46. hxg4 Qc6 $19) 45... Kxg6 46. d8=Q (46. d8=R Kxh5 47. Rd7 f4+ 48. Kxf4 g5+ 49. Kg3 Bc8 $18) (46. Nf4+ Kf7 47. d8=Q Bc6 48. Qc7+ Kf8 49. Ne6+ Ke8 50. Nxg7+ Kf8 51. Nxf5 Bd7 52. Qxd7 h5 53. Qg7+ Ke8 54. Qe7#) 46... Kxh5 47. Qe8+ Kg5 48. Qe7+ Kg6 49. Qxb7) 42... Qe5+ $18 {[%emt 0:00:01]} 43. Nf4 {[%emt 0:00:03]} Qe1+ {[%emt 0:00:27]} 44. Kh2 {[%emt 0:00:06]} Qd2+ {[%emt 0:00:02]} 45. Kg1 {[%emt 0:00:25]} Qe1+ {[%emt 0:00:04]} 46. Kh2 {[%emt 0:00:09]} Qd2+ {[%emt 0:00:01]} 47. Ng2 {[%emt 0:00:02]} Qxd6+ {[%emt 0:00:01]} 48. Qg3 {[%emt 0:00:01]} Qd3 {[%emt 0:00:30] [#]} (48... Qxg3+ $16 49. Kxg3 g6) 49. Ne1 $2 {[%emt 0:00:18]} (49. Qb8 $1 $18 {Droht Matt per Bg8+.} Bd5 50. Qd6 (50. Qxb4 Qxf3 51. Bxd5 Qxd5 $14) (50. Qxa7 Bxb3 51. axb3 Qxb3 $11)) 49... Qe2+ {[%emt 0:00:14]} 50. Kg1 {[%emt 0:00:01]} Qe3+ {[%emt 0:00:07]} 51. Qf2 {[%emt 0:00:09]} Qg5+ {[%emt 0:00:01]} 52. Ng2 {[%emt 0:00:25]} Qc1+ {[%emt 0:00:14]} 53. Kh2 {[%emt 0:00:00]} Qc7+ {[%emt 0:00:02]} 54. Qg3 {[%emt 0:00:01]} Qc3 {[%emt 0:00:07]} 55. Bf7 {[%emt 0:00:04]} g5 {[%emt 0:00:25]} 56. Qb8 {[%emt 0:00:28]} Qe5+ {[%emt 0:00:18]} 57. Qxe5 {[%emt 0:00:02]} fxe5 {[%emt 0:00:01] [#]} 58. Kg3 $1 {[%emt 0:00:04]} Kg7 {[%emt 0:00:09]} 59. Bc4 {[%emt 0:00:23]} a5 {[%emt 0:00:33]} (59... Bc6 $16 {kämpft weiter.} 60. Ne3 h5) 60. Ne3 $18 {[%emt 0:00:01]} a4 $2 {[%emt 0:00:03]} (60... e4 $16 61. f4 Bc8) 61. Nc2 {[%emt 0:00:14]} b3 {[%emt 0:00:02]} 62. axb3 {[%emt 0:00:01]} axb3 {[%emt 0:00:01]} 63. Bxb3 {[%emt 0:00:01]} e4 $2 {[%emt 0:00:01]} (63... Kf6 64. Ne3 Bc8) 64. f4 $18 {[%emt 0:00:09]} gxf4+ {[%emt 0:00:09]} 65. Kxf4 {[%emt 0:00:01]} Kg6 {[%emt 0:00:17]} 66. Ne3 {[%emt 0:00:03]} Bc8 {[%emt 0:00:11]} 67. h4 {[%emt 0:00:05]} Kh5 {[%emt 0:00:34]} 68. Ng2 {[%emt 0:00:05]} Kg6 {[%emt 0:00:12]} 69. Bd5 {[%emt 0:00:05]} Bh3 {[%emt 0:00:11]} 70. Bxe4+ {[%emt 0:00:06]} Kh5 {[%emt 0:00:01]} 71. Bf3+ {[%emt 0:00:01]} Kg6 {[%emt 0:00:01]} 72. Ne3 {[%emt 0:00:01]} Bc8 {[%emt 0:00:08]} 73. Ke5 {[%emt 0:00:03]} (73. h5+ $142 Kg7 74. Nf5+ Kh7 75. Nd4 Kh8 76. Nf5 Bd7 77. Nxh6 Be8 78. Nf5) 73... Kg7 {[%emt 0:00:05]} 74. h5 {[%emt 0:00:25]} Bd7 {[%emt 0:00:04]} 75. Bg4 {[%emt 0:00:01]} Be8 {[%emt 0:00:04]} 76. Nf5+ {[%emt 0:00:01]} Kh7 {[%emt 0:00:00]} 77. Kf6 {[%emt 0:00:01]} Ba4 {[%emt 0:00:05]} 78. Nd6 {[%emt 0:00:17]} Bb3 {[%emt 0:00:35]} 79. Bf5+ {[%emt 0:00:06]} Kh8 {[%emt 0:00:02]} 80. Kg6 {[%emt 0:00:04]} Ba2 {[%emt 0:00:28]} 81. Kxh6 {[%emt 0:00:05]} Bb3 {[%emt 0:00:01]} 82. Be4 {[%emt 0:00:09]} Ba2 {[%emt 0:00:01]} 83. Nf5 {[%emt 0:00:03]} Bb3 {[%emt 0:00:04]} 84. Ne7 {[%emt 0:00:05]} Bc4 {[%emt 0:00:10]} 85. Ng6+ {[%emt 0:00:04]} Kg8 {[%emt 0:00:01]} 86. Bd5+ {[%emt 0:00:05]} 1-0